bitfinex/quotes_ETHUSD_20260109
["timestamp","ask_amount","ask_price","bid_price","bid_amount"]
[1767946397376,0.90952699,3108.7,3108.4,0.002]
[1767946405585,0.001,3108.7,3108.4,0.002]
[1767946413914,0.001,3108.7,3108.4,0.97016578]
[1767946414557,0.001,3108.7,3108.4,4.18718488]
[1767946418499,0.001,3108.7,3108.4,0.002]
[1767946419898,0.001,3108.7,3108.4,0.97016578]
[1767946420096,0.001,3109.3,3108.9,0.96816578]
[1767946420307,0.001,3109.3,3109.0,3.95165033]
[1767946420796,0.001,3109.3,3109.0,7.16810467]
[1767946420963,0.001,3109.3,3109.0,6.19993889]
[1767946421407,0.001,3109.3,3109.0,2.98348455]
[1767946421604,0.001,3109.3,3108.6,0.96816578]
[1767946421898,0.001,3109.3,3108.7,4.98502335]
[1767946422069,0.001,3109.3,3108.7,7.96857209]
[1767946422270,0.001,3109.3,3108.9,3.21656256]
[1767946422471,0.001,3109.3,3108.7,3.78364503]
[1767946422663,0.001,3109.3,3108.7,7.00035871]
[1767946423800,0.93670996,3109.3,3108.4,0.97016578]
[1767946423968,0.93670996,3109.3,3108.6,3.21681561]
[1767946424370,0.93670996,3109.3,3108.7,3.21677271]
[1767946424793,0.93670996,3109.3,3108.6,3.21688219]
[1767946425995,0.93670996,3109.3,3108.4,3.21902605]
[1767946425996,0.93570996,3109.2,3108.4,3.21902605]
[1767946426296,0.93570996,3109.1,3108.5,3.21696997]
[1767946426801,0.93570996,3109.1,3108.4,4.18725495]
[1767946427300,0.93570996,3109.1,3108.5,2.98348455]
[1767946428498,0.93570996,3109.1,3108.4,0.002]
[1767946428700,0.99416373,3108.9,3108.4,0.002]
[1767946428933,0.99416373,3108.8,3108.4,0.002]
[1767946429110,0.99416373,3109.2,3108.6,2.98348455]
[1767946430597,0.99416373,3109.2,3108.5,3.21696954]
[1767946430800,0.99416373,3109.2,3108.4,7.12420939]
[1767946431804,0.99416373,3109.1,3108.4,0.002]
[1767946433405,0.001,3108.5,3108.4,0.002]
[1767946433900,0.99416373,3109.2,3108.4,0.002]
[1767946434400,0.99416373,3109.2,3108.4,2.98548455]
[1767946435387,0.99416373,3109.2,3108.4,3.90712517]
[1767946435902,0.001,3109.3,3108.7,0.92164062]
[1767946436201,0.833,3109.2,3108.6,2.98348455]
[1767946437110,0.833,3109.2,3108.6,3.90512517]
[1767946437996,0.833,3109.2,3108.7,3.21677871]
[1767946438908,0.833,3109.2,3108.6,7.12196155]
[1767946439073,0.833,3109.2,3108.6,8.25946766]
[1767946439600,0.833,3109.2,3108.6,2.05914673]
[1767946440299,0.833,3109.2,3108.6,1.13750611]
[1767946441109,1.82716373,3109.2,3108.6,1.13750611]
[1767946442286,0.99416373,3109.1,3108.4,0.92364062]
[1767946443322,0.99416373,3109.1,3108.4,4.1407213]
[1767946443808,0.99416373,3109.1,3108.4,0.002]
[1767946443977,0.99490215,3108.7,3108.4,0.002]
[1767946444602,3.9783867,3108.6,3108.1,0.002]
[1767946444902,1.47614082,3108.5,3108.1,0.002]
[1767946445495,1.47614082,3108.5,3108.4,0.002]
[1767946445698,1.47614082,3108.5,3108.1,0.002]
[1767946446205,0.99490215,3108.5,3108.1,0.002]
[1767946453181,0.99490215,3108.4,3108.1,0.002]
[1767946453782,0.99490215,3108.4,3108.0,0.002]
[1767946457400,0.99490215,3108.4,3108.3,0.002]
[1767946457630,0.99490215,3108.4,3108.0,0.002]
[1767946457927,1.39188584,3108.4,3108.0,0.002]
[1767946458493,0.39698369,3108.4,3108.0,0.002]
[1767946458814,4.21152607,3108.9,3108.0,0.91410243]
[1767946459128,0.99490215,3108.9,3108.2,0.91210243]
[1767946459299,0.834,3108.8,3108.2,0.91210243]
[1767946459730,4.21126042,3109.2,3108.4,0.91210243]
[1767946460109,0.834,3109.1,3108.4,0.91210243]
[1767946460309,1.66024205,3109.1,3108.4,0.91210243]
[1767946461500,4.87665274,3109.1,3108.4,0.91210243]
[1767946461700,5.87155489,3109.1,3108.4,0.91210243]
[1767946463417,5.04531284,3109.1,3108.4,0.91210243]
[1767946463938,8.26172353,3109.1,3108.4,0.91210243]
[1767946464136,0.99490215,3109.0,3108.2,3.89558698]
[1767946464436,0.99490215,3109.0,3108.2,7.11287292]
[1767946464598,0.99490215,3109.0,3108.2,3.89558698]
[1767946464806,0.99490215,3109.0,3108.2,7.1128675]
[1767946465530,0.99490215,3109.0,3108.3,0.71128675]
[1767946466117,0.99490215,3109.0,3108.3,1.62338918]
[1767946466637,4.21138914,3109.0,3108.3,1.62338918]
[1767946469038,0.99490215,3108.9,3108.1,0.91210243]
[1767946469242,0.99590215,3108.8,3108.1,0.91210243]
[1767946469622,4.21261635,3108.8,3108.1,0.91210243]
[1767946471544,0.99490215,3108.7,3108.0,0.002]
[1767946471720,0.99490215,3108.7,3108.1,0.71151502]
[1767946471920,0.99490215,3108.7,3108.0,0.002]
[1767946472749,0.99490215,3108.7,3108.0,0.91742438]
[1767946473547,0.99490215,3108.7,3108.0,4.13490895]
[1767946473848,0.99490215,3108.7,3108.0,0.91742438]
[1767946474048,0.99490215,3108.7,3108.0,4.13491111]
[1767946474253,0.99490215,3108.7,3108.0,4.87037013]
[1767946476557,0.99490215,3108.7,3108.0,1.6528834]
[1767946477261,0.95011255,3108.6,3108.0,0.002]
[1767946477426,0.95011255,3108.5,3108.0,0.002]
[1767946480549,0.95011255,3108.5,3108.3,0.002]
[1767946480853,0.95011255,3108.5,3108.0,0.002]
[1767946486531,0.95011255,3108.4,3108.0,0.002]
[1767946486731,1.74871601,3108.4,3108.0,0.002]
[1767946486966,0.79860346,3108.4,3108.0,0.002]
[1767946487856,1.74373107,3108.6,3108.0,0.002]
[1767946488658,4.96062133,3108.6,3108.0,0.002]
[1767946488984,0.90873107,3108.5,3108.0,0.002]
[1767946490158,0.90873107,3108.3,3108.0,0.002]
[1767946490346,0.90873107,3108.3,3107.8,0.002]
[1767946490551,1.94140026,3108.3,3107.8,0.002]
[1767946491461,0.90873107,3108.2,3107.8,0.002]
[1767946492442,0.90873107,3108.2,3108.0,0.002]
[1767946492637,0.90873107,3108.2,3107.8,0.002]
[1767946493453,4.12606311,3108.2,3107.8,0.002]
[1767946493660,1.35087323,3108.1,3107.8,0.002]
[1767946497379,0.835,3108.1,3107.8,0.002]
[1767946500394,0.836,3108.2,3107.8,0.97452327]
[1767946501455,0.836,3108.2,3107.8,0.002]
[1767946501788,0.90873107,3108.1,3107.3,3.22018805]
[1767946501975,0.836,3108.2,3107.3,0.002]
[1767946501976,4.12623428,3108.0,3107.3,0.002]
[1767946502157,4.94419287,3108.0,3107.3,0.002]
[1767946502358,0.90873107,3107.5,3106.9,0.002]
[1767946502558,0.836,3107.6,3106.9,0.002]
[1767946502758,0.836,3107.6,3107.0,0.96022892]
[1767946503378,0.81795859,3108.0,3107.3,0.96022892]
[1767946503688,3.21729618,3108.2,3107.4,0.96022892]
[1767946503867,0.836,3108.0,3107.4,0.96022892]
[1767946504386,0.836,3108.0,3106.9,0.002]
[1767946504387,0.93394567,3107.9,3106.9,0.002]
[1767946504579,0.93394567,3107.9,3107.0,0.96022892]
[1767946505894,0.93394567,3107.9,3107.0,4.17869057]
[1767946506061,0.93394567,3107.8,3107.0,4.17869057]
[1767946506990,4.15167586,3107.8,3107.0,0.96022892]
[1767946508394,0.93394567,3107.8,3107.0,4.17873179]
[1767946508581,0.93394567,3107.8,3107.1,0.96022892]
[1767946508977,4.15166402,3107.8,3106.9,0.96222892]
[1767946509172,1.67087996,3107.7,3106.9,4.18080666]
[1767946509607,0.93394567,3107.7,3106.9,4.18080666]
[1767946510201,0.93394567,3107.7,3107.0,3.21849574]
[1767946510796,0.93394567,3107.7,3107.0,3.21846436]
[1767946511004,0.93394567,3107.7,3107.0,4.17869328]
[1767946511296,3.21764488,3107.9,3107.1,0.96022892]
[1767946511297,0.93394567,3107.9,3107.1,0.96022892]
[1767946511537,0.49885125,3107.9,3107.1,0.96022892]
[1767946512310,0.93494567,3108.1,3107.3,0.96022892]
[1767946512872,4.15235231,3108.1,3107.3,0.96022892]
[1767946513073,0.93494567,3108.1,3107.3,4.17845114]
[1767946513381,0.001,3108.1,3107.4,0.96022892]
[1767946513583,0.001,3108.1,3107.6,0.96022892]
[1767946513780,0.001,3108.1,3107.5,0.73966792]
[1767946514383,0.001,3108.1,3107.4,0.96022892]
[1767946514615,0.93494567,3108.1,3107.3,3.21822222]
[1767946515122,4.15236677,3108.1,3107.3,4.17845114]
[1767946515343,0.93394567,3108.0,3107.1,4.17864501]
[1767946515478,0.93394567,3108.0,3107.2,3.21831731]
[1767946516186,0.001,3107.7,3107.2,3.95802346]
[1767946516386,0.001,3107.7,3107.2,4.91825238]
[1767946516872,0.001,3107.7,3107.3,0.96022892]
[1767946517078,0.001,3107.7,3107.4,4.17835339]
[1767946517407,0.001,3108.1,3107.5,0.96022892]
[1767946517710,0.001,3108.1,3107.7,0.96022892]
[1767946519107,0.001,3108.1,3107.9,0.96022892]
[1767946520309,0.001,3108.1,3107.6,0.73964779]
[1767946520695,0.93494567,3108.1,3107.6,0.73964779]
[1767946520913,0.93494567,3108.1,3107.4,3.21807275]
[1767946521214,0.93394567,3108.0,3107.2,3.95797346]
[1767946521978,0.93394567,3108.0,3107.3,3.21822096]
[1767946522681,0.93394567,3108.0,3107.3,4.17844988]
[1767946522887,0.93394567,3108.0,3107.2,3.95802633]
[1767946523197,0.93394567,3108.0,3107.3,3.71002477]
[1767946523397,0.93394567,3108.0,3107.3,4.67025369]
[1767946526290,0.001,3108.1,3107.4,0.96022892]
[1767946527403,0.001,3108.1,3107.5,4.17824983]
[1767946527925,0.001,3108.1,3107.6,0.002]
[1767946528224,0.001,3107.8,3107.6,0.002]
[1767946528390,0.001,3107.8,3107.6,0.96222892]
[1767946528587,0.001,3107.8,3107.6,1.70206617]
[1767946529220,0.001,3107.8,3107.6,0.74183725]
[1767946530186,0.001,3107.8,3107.6,3.95971551]
[1767946530415,0.001,3107.8,3107.6,0.74183725]
[1767946532392,0.001,3108.1,3107.7,0.96022892]
[1767946532622,0.93394567,3108.6,3107.9,3.9441587]
[1767946532919,0.93394567,3108.6,3107.9,0.96022892]
[1767946533822,0.001,3108.8,3108.3,3.9599963]
[1767946534817,0.001,3108.8,3108.3,7.17709471]
[1767946535014,0.001,3109.3,3108.5,0.97606652]
[1767946535322,0.001,3109.3,3108.9,0.97606652]
[1767946535724,0.001,3109.3,3108.6,3.37992941]
[1767946535725,0.001,3109.3,3108.7,3.9599963]
[1767946536029,0.001,3109.3,3108.7,0.97606652]
[1767946536931,0.001,3109.3,3108.8,3.21667524]
[1767946537129,0.001,3109.3,3108.8,4.19274176]
[1767946537929,0.001,3109.3,3108.8,0.97606652]
[1767946539137,0.001,3109.3,3108.8,4.19274003]
[1767946540140,0.001,3109.0,3108.8,4.19274003]
[1767946540523,0.001,3109.0,3108.8,0.97606652]
[1767946540722,0.001,3109.0,3108.6,4.35599593]
[1767946540902,0.001,3109.0,3108.8,3.21667099]
[1767946541317,0.001,3109.0,3108.7,0.43559959]
[1767946541318,0.001,3109.0,3108.7,3.65227699]
[1767946542542,0.001,3109.0,3108.7,7.84512222]
[1767946543025,0.001,3109.0,3108.7,4.62834351]
[1767946546839,0.001,3109.0,3108.7,7.84512222]
[1767946547039,0.001,3109.0,3108.8,1.12250516]
[1767946548733,0.001,3109.0,3108.8,4.33912921]
[1767946551616,0.001,3109.0,3108.8,1.12250516]
[1767946552042,0.001,3109.0,3108.6,3.61288054]
[1767946552351,0.91940955,3108.8,3108.3,3.2171152]
[1767946552569,0.91940955,3108.8,3108.2,3.21728164]
[1767946552721,0.92040955,3109.0,3108.2,3.21728164]
[1767946553852,0.92040955,3109.0,3108.2,6.43457782]
[1767946554026,0.92040955,3109.0,3108.3,0.73580648]
[1767946555152,0.92040955,3109.0,3108.3,1.65929347]
[1767946555527,0.001,3109.3,3108.8,3.21660955]
[1767946555727,0.001,3109.3,3108.8,3.21660791]
[1767946556055,0.001,3109.3,3108.9,3.53821773]
[1767946559254,0.001,3109.3,3108.9,6.7547895]
[1767946559837,0.001,3109.3,3109.0,0.92348699]
[1767946560525,0.001,3109.3,3108.9,6.52214751]
[1767946561041,0.001,3109.3,3108.9,3.53821773]
[1767946561571,0.92040955,3109.3,3108.7,3.21675811]
[1767946561760,0.91940955,3109.1,3108.4,3.2170697]
[1767946562161,2.98392978,3108.6,3108.0,4.14091368]
[1767946562346,3.90333933,3108.6,3108.1,3.21739415]
[1767946562545,0.91940955,3108.6,3107.9,0.9333455]
[1767946562856,0.91940955,3108.6,3108.2,3.21724453]
[1767946563074,4.8152715,3109.2,3108.3,4.15053187]
[1767946563237,0.99434172,3109.1,3108.3,3.21718637]
[1767946563557,0.99434172,3109.1,3108.5,0.002]
[1767946563858,0.99534172,3109.0,3108.5,0.002]
[1767946564099,0.001,3109.0,3108.8,2.98392978]
[1767946564262,0.001,3109.0,3108.6,3.91727528]
[1767946564455,0.001,3109.0,3108.6,2.98392978]
[1767946565374,0.001,3109.0,3108.6,3.91727528]
[1767946565570,0.001,3109.0,3108.7,0.42411939]
[1767946566064,0.001,3109.0,3108.8,3.21667524]
[1767946566356,0.837,3109.6,3109.0,0.9333455]
[1767946566535,0.837,3109.6,3109.2,2.98392978]
[1767946566729,0.99434172,3109.7,3109.0,3.91727528]
[1767946566930,0.99434172,3109.7,3109.0,4.95233786]
[1767946567430,0.99434172,3110.0,3109.4,2.98392978]
[1767946568282,0.99434172,3110.0,3109.5,3.21595111]
[1767946569277,0.837,3110.1,3109.5,3.21595111]
[1767946569773,0.837,3110.1,3109.6,0.9333455]
[1767946570362,0.837,3110.1,3109.6,4.14913587]
[1767946570685,0.837,3110.1,3109.6,3.21579037]
[1767946570991,0.837,3110.1,3109.6,4.14913587]
[1767946572492,1.83134172,3110.5,3109.7,0.9333455]
[1767946572987,0.99434172,3110.4,3109.7,0.9333455]
[1767946573362,0.837,3110.5,3109.9,0.9333455]
[1767946573558,59.96310072,3111.0,3110.3,2.98392978]
[1767946573765,1.41591365,3110.9,3110.3,0.9333455]
[1767946573986,4.39984343,3110.9,3110.3,0.9333455]
[1767946574182,8.6087923,3110.9,3110.1,0.9333455]
[1767946574899,0.99434172,3110.8,3109.9,3.91727528]
[1767946575061,7.61445058,3110.9,3109.9,3.91727528]
[1767946575062,1.85522095,3110.7,3109.9,3.91727528]
[1767946575699,1.85522095,3110.7,3110.0,3.21535106]
[1767946576778,0.86087923,3110.7,3110.1,3.91727528]
[1767946577091,1.41591365,3110.9,3110.2,0.9333455]
[1767946577395,1.41591365,3110.9,3110.3,0.9333455]
[1767946577694,0.99434172,3110.8,3110.0,4.14869656]
[1767946578262,0.99434172,3110.8,3110.1,0.9333455]
[1767946578666,0.99434172,3110.8,3109.9,0.9333455]
[1767946578858,0.99434172,3110.4,3109.9,3.21549642]
[1767946579063,0.99434172,3110.6,3109.9,3.21549642]
[1767946579694,0.99434172,3110.6,3109.8,3.21560691]
[1767946580102,0.99434172,3110.6,3109.7,4.14903209]
[1767946580297,0.99434172,3110.4,3109.6,3.2158414]
[1767946580473,0.99434172,3110.2,3109.6,3.2158414]
[1767946581696,0.99434172,3110.6,3109.8,0.9333455]
[1767946581871,0.99434172,3110.6,3109.7,2.98392978]
[1767946582509,0.99434172,3110.6,3109.9,2.98392978]
[1767946583568,0.99434172,3110.6,3109.8,6.19957065]
[1767946584201,0.99434172,3110.6,3109.8,9.41521152]
[1767946584389,0.99434172,3110.6,3109.8,10.35673267]
[1767946585467,4.63044919,3110.9,3109.9,0.9333455]
[1767946585468,0.99434172,3110.8,3109.9,0.9333455]
[1767946585898,0.99434172,3110.8,3109.8,3.21564087]
[1767946585899,0.99434172,3110.7,3109.8,3.21564087]
[1767946586205,0.99434172,3110.3,3109.6,3.21578969]
[1767946586771,0.99434172,3110.3,3109.5,3.21595111]
[1767946586971,0.99434172,3110.3,3109.5,6.43190222]
[1767946587304,0.99434172,3110.3,3109.5,7.55051997]
[1767946587470,0.99534172,3110.3,3109.5,7.55051997]
[1767946588499,0.99534172,3110.3,3109.5,4.33456886]
[1767946588801,0.99534172,3110.3,3109.5,10.53444975]
[1767946588981,0.99534172,3110.3,3109.5,4.33456886]
[1767946589185,0.99534172,3110.3,3109.5,6.19988089]
[1767946589502,0.001,3110.3,3109.7,3.91727528]
[1767946589679,0.001,3110.3,3109.8,0.9333455]
[1767946589873,0.001,3110.3,3110.0,0.9333455]
[1767946590494,0.001,3110.3,3109.8,0.9333455]
[1767946590799,0.001,3110.3,3109.8,1.32507303]
[1767946591779,0.001,3110.3,3109.9,4.14888297]
[1767946592292,0.001,3110.3,3109.9,0.9333455]
[1767946594507,0.001,3110.3,3109.9,4.1488023]
[1767946594884,0.001,3110.3,3109.9,0.9333455]
[1767946595076,0.001,3110.3,3110.0,0.45406595]
[1767946595481,0.001,3110.3,3109.8,0.39172753]
[1767946597571,0.99118188,3110.3,3109.8,0.39172753]
[1767946598714,0.99118188,3110.3,3109.8,3.60735199]
[1767946598889,0.001,3110.3,3109.8,3.60735199]
[1767946600792,0.001,3110.3,3109.8,0.39172753]
[1767946600988,0.99118188,3110.3,3109.8,0.39172753]
[1767946601320,0.99118188,3110.3,3109.6,0.92725659]
[1767946603811,0.99118188,3110.3,3109.6,4.14307438]
[1767946604801,0.99118188,3110.3,3109.6,3.21581779]
[1767946606438,0.99118188,3110.3,3109.5,6.43189629]
[1767946606799,0.99118188,3110.3,3109.5,7.35915288]
[1767946607109,0.99118188,3110.3,3109.6,0.73591529]
[1767946609039,0.99118188,3110.3,3109.6,3.95169371]
[1767946609407,0.94459845,3110.2,3109.6,0.73591529]
[1767946609607,0.94459845,3110.2,3109.1,4.76907715]
[1767946609608,0.94459845,3110.2,3109.2,3.21619719]
[1767946610436,0.94459845,3110.2,3109.1,4.76907715]
[1767946610809,0.94459845,3110.2,3109.4,3.21599437]
[1767946611207,0.94559845,3110.0,3109.3,3.21615797]
[1767946611407,0.94559845,3110.0,3109.4,0.73514237]
[1767946612138,0.94559845,3110.0,3109.2,3.21621741]
[1767946613146,0.94559845,3110.0,3109.1,3.21635294]
[1767946613349,0.94559845,3110.0,3109.1,6.4327178]
[1767946613554,0.94559845,3110.0,3109.1,7.35179495]
[1767946616855,6.43190239,3110.0,3109.0,4.25150721]
[1767946617040,6.43190239,3110.0,3108.7,0.91907715]
[1767946617041,0.94459845,3109.5,3108.7,0.91907715]
[1767946617246,0.94459845,3109.5,3108.8,3.21665162]
[1767946617450,0.94459845,3109.5,3108.7,3.21674147]
[1767946617834,0.94459845,3109.5,3108.7,4.13581862]
[1767946618025,0.94459845,3109.5,3108.8,0.79858186]
[1767946618455,0.94459845,3109.7,3108.9,0.91907715]
[1767946618951,0.838,3110.0,3109.2,0.91907715]
[1767946619559,1.78259845,3110.0,3109.2,0.91907715]
[1767946619854,4.99803527,3110.0,3109.2,0.91907715]
[1767946620034,0.94459845,3109.9,3109.2,0.91907715]
[1767946620235,0.94459845,3109.9,3109.2,1.33261478]
[1767946620649,0.94459845,3109.8,3108.7,0.91907715]
[1767946620968,0.94459845,3109.8,3108.9,3.21653988]
[1767946621262,0.94459845,3109.8,3108.8,3.21665012]
[1767946621667,0.94459845,3109.8,3108.8,3.21661594]
[1767946621833,0.94459845,3109.6,3108.8,3.21661594]
[1767946626850,0.94459845,3109.6,3108.8,4.16396289]
[1767946627053,0.001,3109.7,3108.9,0.94734695]
[1767946627360,0.001,3109.7,3109.0,0.94734695]
[1767946627941,0.001,3109.7,3109.3,0.94734695]
[1767946628145,0.001,3109.7,3109.4,0.39275521]
[1767946629196,0.001,3110.0,3109.6,0.94734695]
[1767946629479,0.001,3110.3,3109.8,0.94734695]
[1767946630679,0.001,3110.3,3109.9,0.94734695]
[1767946630874,0.001,3110.3,3110.0,1.34010216]
[1767946631075,0.001,3110.3,3110.0,4.55550355]
[1767946632377,0.001,3110.3,3110.0,1.34010216]
[1767946632578,0.001,3110.3,3110.0,4.55550385]
[1767946632884,0.001,3110.3,3110.1,0.94734695]
[1767946634057,0.001,3110.3,3110.1,1.40289358]
[1767946634592,0.001,3110.3,3109.4,0.39275521]
[1767946634760,0.001,3110.3,3109.5,1.78534695]
[1767946634960,0.001,3110.3,3109.8,3.21558607]
[1767946635153,0.001,3110.3,3109.7,3.21574428]
[1767946635353,0.001,3110.3,3109.7,4.16309123]
[1767946635585,0.001,3110.3,3109.8,0.7378924]
[1767946635967,0.94749818,3110.3,3109.5,3.21590118]
[1767946636964,0.94749818,3110.3,3109.6,3.2158467]
[1767946638392,0.94749818,3110.3,3109.5,3.21595111]
[1767946638587,0.94749818,3110.3,3109.6,0.94734695]
[1767946638897,0.001,3110.3,3109.7,0.73792492]
[1767946640489,0.001,3110.3,3109.7,3.95358999]
[1767946640684,0.001,3110.3,3109.7,4.90093694]
[1767946642296,0.001,3110.3,3109.7,1.68527187]
[1767946644008,0.001,3110.3,3109.8,0.94734695]
[1767946644179,0.001,3110.3,3109.9,0.49009789]
[1767946645578,0.94749818,3110.3,3109.6,4.16318265]
[1767946645781,0.94749818,3110.3,3109.7,3.21571785]
[1767946646176,0.94749818,3110.3,3110.0,0.002]
[1767946648406,0.001,3110.3,3110.0,0.002]
[1767946649885,0.94749818,3110.3,3110.0,0.002]
[1767946650090,0.94649818,3110.2,3110.0,0.002]
[1767946650285,0.94649818,3110.2,3109.6,0.002]
[1767946650702,0.39377033,3110.3,3109.6,0.94934695]
[1767946652614,0.39377033,3110.3,3109.7,0.94734695]
[1767946652822,0.001,3110.3,3109.7,0.94734695]
[1767946654075,0.001,3110.3,3109.8,0.97139343]
[1767946657723,0.001,3110.3,3109.8,4.18701686]
[1767946657897,0.001,3110.3,3109.9,3.95215668]
[1767946658100,0.001,3110.3,3110.0,0.97139343]
[1767946658318,0.001,3110.3,3110.0,5.22511785]
[1767946658818,0.001,3110.3,3110.1,0.97139343]
[1767946662018,0.001,3110.3,3110.2,0.97139343]
[1767946662197,0.838,3110.9,3110.1,3.21530535]
[1767946662198,1.7884481,3110.9,3110.1,6.43063604]
[1767946662404,0.9504481,3110.8,3110.1,6.43063604]
[1767946662721,0.9504481,3110.8,3110.2,1.14231348]
[1767946662934,0.9504481,3110.8,3110.2,4.12307673]
[1767946664326,0.9504481,3110.8,3110.3,3.21512394]
[1767946665194,59.9192071,3111.0,3110.3,3.21512394]
[1767946665398,59.9192071,3111.0,3110.4,2.98076325]
[1767946665619,59.9192071,3111.0,3110.4,3.81172266]
[1767946666406,59.9192071,3111.0,3110.4,7.02665996]
[1767946667123,58.968759,3111.0,3110.4,8.01192062]
[1767946667428,58.968759,3111.0,3110.5,0.98526066]
[1767946668717,58.968759,3111.0,3110.5,4.20014886]
[1767946668918,58.968759,3111.0,3110.5,5.32283698]
[1767946669121,58.968759,3111.0,3110.6,0.98526066]
[1767946669925,58.968759,3111.0,3110.5,1.12268812]
[1767946670136,0.98568484,3112.1,3110.9,5.9615265]
[1767946670331,0.98568484,3111.9,3111.2,2.98076325]
[1767946670501,0.838,3111.8,3111.2,6.19490506]
[1767946671621,0.838,3111.8,3111.4,2.98076325]
[1767946673135,0.98568484,3111.7,3111.2,2.98076325]
[1767946673313,0.98568484,3111.7,3111.0,0.59615265]
[1767946673509,0.98568484,3111.5,3110.7,3.21470662]
[1767946673704,0.98568484,3111.5,3110.8,3.21455075]
[1767946674032,0.98568484,3111.5,3110.9,6.19525661]
[1767946674636,0.98568484,3111.5,3110.8,3.21457358]
[1767946674933,0.98568484,3111.5,3110.8,6.19533683]
[1767946675834,0.98568484,3111.5,3110.8,2.98076325]
[1767946677608,0.98568484,3111.5,3110.1,3.21525085]
[1767946677609,0.98568484,3111.5,3109.6,9.64954307]
[1767946677807,0.98568484,3111.5,3110.8,2.98076325]
[1767946678005,0.98568484,3111.5,3110.6,2.98076325]
[1767946679544,0.98568484,3111.5,3110.7,3.21471051]
[1767946679834,0.98568484,3111.5,3110.8,0.61954738]
[1767946680042,0.98568484,3111.5,3110.7,3.21471051]
[1767946680816,0.98568484,3111.5,3110.5,3.21490256]
[1767946680817,0.98568484,3111.1,3110.2,3.85]
[1767946681035,6.42783534,3111.5,3110.4,3.21495716]
[1767946681036,0.98568484,3110.9,3110.4,3.21495716]
[1767946681222,1.82368484,3110.8,3110.5,3.21490349]
[1767946681430,0.838,3110.7,3110.5,3.21490349]
[1767946681741,0.98568484,3111.0,3110.5,4.15598166]
[1767946681951,0.98568484,3111.0,3110.6,2.98076325]
[1767946682312,0.98568484,3111.0,3110.5,3.21490349]
[1767946682513,0.98568484,3111.0,3110.6,2.98076325]
[1767946682742,0.9596546,3110.8,3110.0,2.98276325]
[1767946682943,0.9596546,3110.8,3110.0,0.002]
[1767946683148,0.9596546,3110.6,3110.0,0.002]
[1767946683315,0.9596546,3110.5,3110.0,0.002]
[1767946683515,0.9596546,3110.4,3110.0,0.002]
[1767946683946,0.9596546,3110.3,3110.0,0.002]
[1767946686445,0.95765461,3110.3,3110.0,0.002]
[1767946688645,0.9596546,3110.2,3110.0,0.002]
[1767946690331,0.838,3110.1,3110.0,0.002]
[1767946690629,1.7976546,3110.1,3110.0,0.002]
[1767946697965,0.9596546,3110.3,3110.0,2.98276325]
[1767946698139,0.9596546,3110.3,3110.0,0.002]
[1767946706564,0.9596546,3110.1,3108.8,3.85]
[1767946706865,0.9596546,3109.5,3108.7,0.002]
[1767946707056,0.9596546,3109.3,3108.7,0.002]
[1767946707934,0.9596546,3109.2,3108.7,0.002]
[1767946708832,0.9596546,3109.2,3109.0,0.002]
[1767946714746,0.98061438,3108.8,3108.6,0.002]
[1767946716344,0.96551438,3108.8,3108.6,0.002]
[1767946716667,0.98061438,3108.7,3108.5,0.002]
[1767946717066,0.96551438,3108.7,3108.5,0.002]
[1767946718142,0.96351439,3108.7,3108.5,0.002]
[1767946719179,1.81861438,3108.9,3108.5,0.002]
[1767946720079,0.98061438,3108.8,3108.5,0.002]
[1767946723597,0.839,3108.7,3108.5,0.002]
[1767946723880,0.83700001,3108.7,3108.5,0.30441417]
[1767946724760,0.83500002,3108.7,3108.5,0.30441417]
[1767946726185,0.83500002,3108.7,3108.5,0.002]
[1767946728077,0.94638552,3108.6,3108.5,0.002]
[1767946728266,0.93923407,3108.6,3108.5,0.002]
[1767946728466,0.83500002,3108.7,3108.5,0.002]
[1767946731560,0.83300003,3108.7,3108.5,0.002]
[1767946731762,0.83100004,3108.7,3108.5,0.002]
[1767946733089,0.83100004,3108.7,3108.5,0.32411927]
[1767946733489,0.001,3108.9,3108.5,0.3674707]
[1767946733792,0.839,3109.1,3108.6,0.04335143]
[1767946735290,0.94638552,3110.0,3108.7,0.04335143]
[1767946735493,0.94638552,3109.8,3108.8,3.67500468]
[1767946735694,0.94638552,3109.8,3109.1,2.98394167]
[1767946736302,0.839,3109.9,3109.2,0.04335143]
[1767946736956,0.839,3109.9,3109.4,2.98394167]
[1767946737270,0.839,3109.9,3109.4,3.0272931]
[1767946737470,0.94638552,3110.4,3109.7,2.98394167]
[1767946737669,0.94638552,3110.3,3109.7,2.98394167]
[1767946737878,0.94638552,3110.3,3109.5,0.04335143]
[1767946738490,0.94638552,3110.3,3109.6,0.04335143]
[1767946738693,0.94638552,3110.3,3109.8,3.21564087]
[1767946739665,0.94638552,3110.6,3109.8,3.21564087]
[1767946739864,0.94638552,3110.6,3109.7,3.51844295]
[1767946740908,0.94638552,3110.6,3109.7,6.73418723]
[1767946741589,0.94638552,3110.6,3109.7,6.77753866]
[1767946741784,0.94638552,3110.6,3109.8,0.7211053]
[1767946742099,0.94638552,3110.6,3109.9,0.04335143]
[1767946743271,0.94638552,3110.6,3109.9,3.25883589]
[1767946744171,0.001,3110.3,3109.9,6.19942613]
[1767946744478,0.99038652,3110.7,3110.0,0.73540457]
[1767946744677,1.82938652,3110.9,3110.2,2.98394167]
[1767946745068,0.99038652,3110.8,3110.0,0.69205314]
[1767946745270,0.99038652,3110.8,3110.0,3.90745881]
[1767946748205,0.99038652,3110.8,3110.0,7.12289289]
[1767946748406,0.99038652,3110.8,3110.1,0.71662443]
[1767946750116,0.99038652,3110.8,3110.2,3.21522731]
[1767946750276,0.99038652,3111.0,3110.2,3.21522731]
[1767946750476,0.99038652,3111.0,3110.2,3.25857874]
[1767946751316,0.99038652,3111.0,3110.2,6.47380605]
[1767946751525,0.99038652,3111.0,3110.3,3.70298472]
[1767946752292,0.99038652,3111.0,3110.3,6.91804736]
[1767946753213,0.99038652,3111.0,3110.3,10.1331713]
[1767946754512,0.99238652,3111.5,3110.7,0.94350289]
[1767946756416,0.002,3111.5,3111.0,0.94350289]
[1767946756602,0.002,3111.5,3111.1,0.39274446]
[1767946757618,0.002,3111.5,3111.1,1.33624735]
[1767946757912,3.25129771,3112.6,3111.1,1.33624735]